Cogmind - Beta 15 --- EXPLORER MODE // 2025.05.05 @ 18:27:52 Player: Lily Result: Destroyed by 1I-PD2(R) with Subdweller Machine Gun Performance ------------- Evolutions (0) 0 Regions Visited (2) 400 Robots Destroyed (0) 0 Value Destroyed (0) 0 Prototype IDs (0) 0 Alien Tech Used (0) 0 Bonus (0) 0 TOTAL SCORE: 400 Bonus ------- None Cogmind --------- Core Integrity 0/250 Matter 300/300 Energy 98/100 System Corruption 0% Temperature Cool (0) Movement Core (50) Location -10/Subcaves Parts ------- > --- POWER (2) -------- (None) > --- PROPULSION (2) --- (None) > --- UTILITY (2) ------ Targeting Computer Core Shielding > --- WEAPON (2) ------- (None) > --- INVENTORY (5) ---- Large Battery (200) Peak State ------------ > --- POWER ------------ Light Ion Engine Light Ion Engine > --- PROPULSION ------- Aluminum Leg Aluminum Leg > --- UTILITY ---------- Targeting Computer Core Shielding > --- WEAPON ----------- Medium Laser Small Laser > --- INVENTORY -------- Large Battery [Rating: 8] Favorites ----------- Power Light Ion Engine Engine Light Ion Engine Propulsion Aluminum Leg Leg Aluminum Leg Utility Targeting Computer Processor Targeting Computer Protection Core Shielding Weapon Medium Laser Energy Gun Medium Laser Build | -11 -10 -10 ------- Run | Yrd Mat Sub Slots Evolved 1 | . 1 . Power 1 | . 1 . Propulsion . | . . . Utility . | . . . Weapon . | . . . Parts Attached 8 | 7 1 . Power 2 | 1 1 . Engine 2 | 1 1 . Core . | . . . Reactor . | . . . Propulsion 2 | 2 . . Treads . | . . . Leg 2 | 2 . . Wheel . | . . . Hover . | . . . Flight . | . . . Utility 2 | 2 . . Device . | . . . Storage . | . . . Processor 1 | 1 . . Hackware . | . . . Protection 1 | 1 . . Artifact . | . . . Weapon 2 | 2 . . Energy Gun 2 | 2 . . Energy Cannon . | . . . Ballistic Gun . | . . . Ballistic Cannon . | . . . Launcher . | . . . Special Weapon . | . . . Impact Weapon . | . . . Slashing Weapon . | . . . Piercing Weapon . | . . . Special Melee Weapon . | . . . Unidentified Prototypes . | . . . Parts Lost 6 | . . 6 Power 2 | . . 2 Propulsion 2 | . . 2 Utility . | . . . Weapon 2 | . . 2 Highest Loss Streak 4 | . . 4 To Critical Strikes . | . . . Average Backups . | . . 1 Power . | . . . Propulsion . | . . . Utility . | . . 1 Weapon . | . . . Tool/Special . | . . . Unused Backups 1 | . . 1 Power . | . . . Propulsion . | . . . Utility 1 | . . 1 Weapon . | . . . Tool/Special . | . . . Average Slot Usage (%) 68 | . 96 55 Engine 12 | . 21 8 Leg 15 | . 25 11 Processor 12 | . 12 12 Protection 12 | . 12 12 Energy Gun 14 | . 25 10 Peak Build Rating 8 | 7 8 8 Average Rating 5 | 3 7 4 On Entrance 5 | . 7 8 Naked Turns . | . . . Heaviest Build 10 | 7 10 10 Greatest Support 20 | 20 20 20 Greatest Overweight (x) . | . . . Average Overweight (x) . | . . . Largest Inventory Capacity 5 | 5 5 5 Average Capacity 5 | 5 5 5 Most Carried 5 | 5 2 1 Average Carried . | . . 1 Final Capacity 5 | 5 5 5 Final Carried 1 | . 1 1 Class Distribution -------------------- 100% | Hacker-Mutant Dominant Class ---------------- Hacker-Mutant | -10/Materials Hacker-Mutant | -10/Subcaves Resources | -11 -10 -10 ----------- Run | Yrd Mat Sub Matter Collected 280 | 241 39 . Remotely . | . . . Salvage Created . | . . . Parts . | . . . Haulers Intercepted . | . . . Recyclers Shooed . | . . . Parts Field Recycled . | . . . Retrieved Matter . | . . . Parts Self-Destructed . | . . . Prevented . | . . . Kills | -11 -10 -10 ------- Run | Yrd Mat Sub Combat Hostiles Destroyed . | . . . Classes Destroyed . | . . . Best Kill Streak . | . . . Combat Bots Only . | . . . Max Kills in Single Turn . | . . . Gunslinging . | . . . Exploded . | . . . Melee . | . . . Uniques/NPCs Destroyed . | . . . Combat | -11 -10 -10 -------- Run | Yrd Mat Sub Hostile Shots Fired 63 | . 2 61 Missed 21 | . . 21 Hits 42 | . 2 40 Projectile 42 | . 2 40 Critical Strikes 2 | . . 2 Actively Blocked 2 | . . 2 Damage Taken 706 | . 13 693 Core 259 | . . 259 Absorbed by Shields . | . . . Redirected to Shielding 47 | . . 47 Ignored by Resistances 416 | . 8 408 Core Remaining (%) 100 | 100 . . Volleys Fired 1 | . 1 . Largest 2 | . 2 . Hottest 90 | . 90 . Shots Fired 2 | . 2 . Gun 2 | . 2 . Cannon . | . . . Launcher . | . . . Special . | . . . Kinetic . | . . . Thermal 2 | . 2 . Explosive . | . . . Electromagnetic . | . . . Robot Hit Streak 2 | . 2 . Robot Miss Streak . | . . . Penetration Max . | . . . Secondary Targets . | . . . Shots Hit Robots 2 | . 2 . Core Hits 1 | . 1 . Critical Kills . | . . . Critical Parts Destroyed . | . . . Critical Strikes . | . . . Melee Attacks . | . . . Impact . | . . . Slashing . | . . . Piercing . | . . . Sneak Attacks . | . . . Combat Hostiles . | . . . Follow-up Attacks . | . . . Damage Inflicted 23 | . 23 . Guns 23 | . 23 . Cannons . | . . . Explosions . | . . . Melee . | . . . Ramming . | . . . Kinetic . | . . . Thermal 23 | . 23 . Explosive . | . . . Electromagnetic . | . . . Impact . | . . . Slashing . | . . . Piercing . | . . . Highest Corruption . | . . . Average Corruption . | . . . Corruption Purged . | . . . Corruption Blocked . | . . . Overload Shots . | . . . Overflow Damage . | . . . Projectiles . | . . . Explosions . | . . . Melee . | . . . Knockbacks . | . . . Impact . | . . . Kinetic . | . . . Secondary . | . . . Self-Inflicted Damage . | . . . Shots . | . . . Rammed . | . . . Targets Rammed . | . . . Kicked . | . . . Crushed . | . . . Highest Temperature 57 | . 57 . Average Temperature 30 | . 30 . Received Heat Transfer 345 | . 12 333 Siege Activations . | . . . Martial Activations . | . . . Shielding Activations . | . . . Robots Disrupted . | . . . Combat Hostiles . | . . . Robots Corrupted . | . . . Combat Hostiles . | . . . Parts Fried . | . . . Impact Corruptions . | . . . Robots Melted . | . . . Combat Hostiles . | . . . Parts Melted . | . . . Heat Transferred 62 | . 62 . Parts Sabotaged . | . . . Parts Stolen . | . . . Parts Stripped . | . . . Power Chain Reactions . | . . . Alert | -11 -10 -10 ------- Run | Yrd Mat Sub Maximum Alert Level . | . . . Low Security (%) 100 | 100 100 . Level 1 . | . . . Level 2 . | . . . Level 3 . | . . . Level 4 . | . . . Level 5 . | . . . High Security . | . . . Max Security . | . . . Peak Influence . | . . . Initial . | . . . Average . | . . . Influence Increases . | . . . Influence Decreases . | . . . Squads Dispatched . | . . . Investigation . | . . . Extermination . | . . . Reinforcement . | . . . Assault . | . . . Garrison . | . . . Intercept . | . . . Searches Triggered . | . . . Construction Impeded . | . . . Haulers Reinforced . | . . . Active Scanning Responses . | . . . Cargo Convoy Interrupts . | . . . Stealth | -11 -10 -10 --------- Run | Yrd Mat Sub Distress Signals 1 | . 1 . Communications Jammed . | . . . Distress Signals . | . . . Times Spotted 5 | . 2 3 Peak Tracking Total 2 | . 1 2 Tactical Retreats . | . . . Traps | -11 -10 -10 ------- Run | Yrd Mat Sub Traps Triggered . | . . . Indirectly . | . . . Trap Hack Attempts . | . . . Triggered . | . . . Disarmed . | . . . Reprogrammed . | . . . Reused . | . . . Traps Extracted . | . . . Installed . | . . . Triggered . | . . . Machines | -11 -10 -10 ---------- Run | Yrd Mat Sub Machines Disabled . | . . . Max in Single Turn . | . . . Machines Repaired . | . . . Machines Dismantled . | . . . Machines Sabotaged . | . . . Overloaded Fab Kills . | . . . Hacking | -11 -10 -10 --------- Run | Yrd Mat Sub Machines Accessed . | . . . Terminals . | . . . Fabricators . | . . . Repair Stations . | . . . Recycling Units . | . . . Scanalyzers . | . . . Garrison Access . | . . . Total Hacks . | . . . Successful . | . . . Failed . | . . . Catastrophic . | . . . Database Lockouts . | . . . Manual . | . . . Terminals . | . . . Fabricators . | . . . Repair Stations . | . . . Recycling Units . | . . . Scanalyzers . | . . . Garrison Access . | . . . Terminal Hacks . | . . . Fabricator Hacks . | . . . Repair Station Hacks . | . . . Recycling Unit Hacks . | . . . Scanalyzer . | . . . Garrison Access Hacks . | . . . Unauthorized Hacks . | . . . Terminals . | . . . Fabricators . | . . . Repair Stations . | . . . Recycling Units . | . . . Scanalyzers . | . . . Garrison Access . | . . . Data Cores Recovered . | . . . Used . | . . . Hacking Detections . | . . . Full Trace Events . | . . . Feedback Events . | . . . Feedback Blocked . | . . . Robot Schematics Acquired . | . . . Robots Built . | . . . Authchips . | . . . Time . | . . . Total Robot Build Rating . | . . . Part Schematics Acquired . | . . . Parts Built . | . . . Authchips . | . . . Time . | . . . Total Part Build Rating . | . . . Parts Repaired . | . . . Time . | . . . Parts Recycled . | . . . Recycled Matter . | . . . Retrieved Matter . | . . . Retrieved Components . | . . . Parts Scanalyzed . | . . . Part Schematics Acquired . | . . . Parts Damaged . | . . . Bothacking | -11 -10 -10 ------------ Run | Yrd Mat Sub Used RIF Installer . | . . . Robots Hacked . | . . . Non-combat . | . . . Combat . | . . . Robot Hacks Applied . | . . . Relay Couplers Released . | . . . Fabnet Peak Effective % . | . . . Robots Rewired . | . . . Allies Hacked . | . . . Hacks Repelled . | . . . Allies | -11 -10 -10 -------- Run | Yrd Mat Sub Total Allies . | . . . Largest Group . | . . . Highest-Rated Group . | . . . Highest-Rated Ally . | . . . Total Orders . | . . . Ally Attacks . | . . . Total Damage . | . . . Kills . | . . . Allies Corrupted . | . . . Allies Melted 1 | . . 1 Intel | -11 -10 -10 ------- Run | Yrd Mat Sub Active Infowar (turns) . | . . . Robot Analysis Total . | . . . Derelict Logs Recovered . | . . . Drone Launches . | . . . Drone Recoveries . | . . . Exploration | -11 -10 -10 ------------- Run | Yrd Mat Sub Turns Passed 625 | 56 172 397 Spaces Moved 326 | 39 119 168 Core 162 | 17 . 145 Treads . | . . . Legs 164 | 22 119 23 Wheels . | . . . Hover . | . . . Flight . | . . . Fastest Speed 50 | 50 120 50 Average Speed 85 | 89 120 59 Slowest Speed 120 | 120 120 120 Overloaded Moves . | . . . Propulsion Burnouts . | . . . Robots Hopped . | . . . Potential Cave-ins . | . . . Cave-ins Triggered . | . . . Exploration Rate (%) 16 | 4 33 11 Regions Visited 2 Branch Regions 1 Pre-discovered Areas . | . . . Known Exits Taken 2 | 1 1 . Unknown Exits Taken . | . . . Scrap Searched . | . . . Spaces Dug . | . . . Terrain Destroyed . | . . . Melee . | . . . Projectile . | . . . AOE . | . . . Terrain Rammed . | . . . Walls Destroyed . | . . . Machines Disabled . | . . . Actions | -11 -10 -10 --------- Run | Yrd Mat Sub Total 670 | 59 146 465 Wait 329 | 8 24 297 Move 324 | 38 118 168 Hop . | . . . Pick Up 8 | 6 2 . Fast Attach 1 | 1 . . Attach 7 | 6 1 . Detach . | . . . Swap . | . . . Drop . | . . . Fire 1 | . 1 . Melee . | . . . Ram . | . . . Kick . | . . . Crush . | . . . Escape Stasis . | . . . Rewire . | . . . Trap . | . . . Miscellaneous . | . . . Route ------- -11/Scrapyard -10/Materials (discovered 3 exits: *Mat / *Min / *Sub) -10/Subcaves History --------- Turn | Location | Event 19 | -11/Scrapyard | Identified exit to Materials 19 | -11/Scrapyard | Discovered exit to Materials (range 15) 57 | -11/Scrapyard | Entered Materials 57 | -10/Materials | Evolved 1 slot: Power x1 58 | -10/Materials | Met a group of wandering Federalists 129 | -10/Materials | Identified exit to Mines 129 | -10/Materials | Discovered exit to Mines (range 8) 213 | -10/Materials | Identified exit to Materials 213 | -10/Materials | Discovered exit to Materials (range 16) 227 | -10/Materials | Identified exit to Subcaves 227 | -10/Materials | Discovered exit to Subcaves (range 3) 229 | -10/Materials | Entered Subcaves 230 | -10/Subcaves | Continued accompanying wandering Federalists (5) 263 | -10/Subcaves | Shifting Twisted Machinery released Battle Cannon 264 | -10/Subcaves | Shifting Twisted Machinery released Battle Cannon 303 | -10/Subcaves | Build established: Hacker-Mutant 318 | -10/Subcaves | Lost 5 allies 414 | -10/Subcaves | Core integrity fell below 50% 442 | -10/Subcaves | Lost 4 parts (1p2n1w) 449 | -10/Subcaves | Core integrity fell below 20% 611 | -10/Subcaves | Shifting Twisted Machinery released Scrap Shield 626 | -10/Subcaves | Destroyed by 1I-PD2(R) with Subdweller Machine Gun Last Messages --------------- Optics. 00421_ KH-VTG(R) overheating. 00431_ Subatomizers dissect the Sub. Optics. 00431_ KH-VTG(R) overheating. 00434_ KH-VTG(R) heat damages Sub. Beam Cannon. 00434_ KH-VTG(R) overheating. 00443_ Subatomizers dissect the Sub. Optics. 00443_ KH-VTG(R) overheating. 00446_ KH-VTG(R) heat damages Broken Sub. Optics. 00446_ KH-VTG(R) overheating. 00453_ KH-VTG(R) heat damages core (-9). 00456_ Subatomizers dissect the Sub. Optics. 00483_ Subatomizers dissect the Sub. Optics, destroying it. 00497_ Subatomizers dissect the Aluminum Leg. Scrap Shield falls loose from the Twisted Machinery. Map ----- +----------------------------------------------------+ | ????????????????????# ## #? "! #??????? | | ???????????????" " ] ##?"" #??????? | | ???????????? ???""# # # # #?##########??????? | | ???????????? ????????##?### ##?????????????????? | | ???????????? ##???????????# #??????????????????? | | ???????????"" #???????????## ##?????????????????? | | ?????????## #????????????# #?????????????????? | | ?????????# "" ##??????????## ##?????????????????? | | ?????????# """ ###????????# ##?????????????????? | | ?????????# #" "" #????????## ##????????????????? | | #########?# #??????###### #????????????????? | | # # # ### #?????## ## ##???????????????? | | ## #?##### #???????????????? | | " ### ## ##???????????????? | | # " ##????????????????? | | "##### #?????????????????? | | " #??## #### #?????????????????? | | &" #???## #??## #?????????????????? | | &%" #????## ##???## ##?????????????????? | | *"""#????# " "#????### ##??????????????????? | | "" #????" " #?????## ##???????????????????? | | "# #????# #?????## ##????????????????????? | | ## #???#"& #?????# #?????????????????????? | | ## ""?"# " ?????# ##????????????????????? | | ??# # "" #### ????##R ##### #?????????????? | | ???# #####?????### #???# @ #???????????????? | | #??? ???????????? ??# ##### #???????????????? | | ##??"####???????????? #?????????????????????? | | ##" #"""??????? #?????????????????????? | | " ""????? #?????????????????????? | | ### "###??????### ## #?????????????????????? | | #???####??????????### ?# ?????????????????????? | | ????????????????????####?# ?????????????????????? | | ?????????????????????????? ?????????????????????? | | ??????????????????????????###????????????????????? | | ?????????????????????????????????????????????????? | | ?????????????????????????????????????????????????? | | ?????????????????????????????????????????????????? | | ?????????????????????????????????????????????????? | | ?????????????????????????????????????????????????? | | ?????????????????????????????????????????????????? | | ?????????????????????????????????????????????????? | | ?????????????????????????????????????????????????? | | ?????????????????????????????????????????????????? | | ?????????????????????????????????????????????????? | | ?????????????????????????????????????????????????? | | ?????????????????????????????????????????????????? | | ?????????????????????????????????????????????????? | | ?????????????????????????????????????????????????? | | ?????????????????????????????????????????????????? | +----------------------------------------------------+ Best States ------------- Heat Dissipation 25 Energy Generation 15 Energy Capacity 150 Matter Stores 300 Matter Capacity 300 Sight Range 16 Terrain Scan Density 10 Resistance: KI 35 Resistance: TH 35 Resistance: EX 35 Resistance: EM 35 Resistance: I 35 Resistance: S 35 Resistance: P 35 Core Shielding 20 Evasion (%) 55 Targeting Accuracy 5 Offensive Hacking 20 Item Schematics ----------------- None Robot Schematics ------------------ None Fabricated ------------ Nothing Repaired ---------- Nothing Alien Tech Used ----------------- None Achievements -------------- None Challenges ------------ None Game ------ Seed WeaponsSmartRail Manual? 0 Play Time 00:14:31 Cumulative 12.5 hours Start 2025.05.05 @ 18:02:53 End 2025.05.05 @ 18:27:52 Sessions 1 Manual Loads 0 Difficulty Explorer Special Mode None Game No. 41 Rogue 34 Adventurer 0 Explorer 7 Win Type - Total 0 Types 0/0/0/0/0/0/0/0/0/0 Lore% 8 Gallery% 9 Achievement% 14 Wizard Run 0 Options --------- Layout 1 ASCII 0 Keyboard 0 Movement Numpad Keybinds 0 Fullscreen 1 Font 24/Smallcaps Map View 50x35 Zoom Use 0% Tactical HUD 1 Map Filters NONE Filters NONE Steam 1 RUN: 4765cada-72d4-412e-b92c-e3e6bce2f0fd